bitfinex/quotes_BTCUSD_20241003
["timestamp","ask_amount","ask_price","bid_price","bid_amount"]
[1727984955466,0.000817,61058.0,61057.0,0.170781]
[1727984955968,0.001817,61058.0,61057.0,0.177781]
[1727984956211,0.000817,61058.0,61057.0,0.259881]
[1727984956430,0.001817,61058.0,61057.0,0.271881]
[1727984956665,0.001817,61058.0,61057.0,0.279881]
[1727984956902,0.001817,61058.0,61057.0,0.28091224]
[1727984957142,0.001817,61058.0,61057.0,0.271881]
[1727984957387,0.001817,61058.0,61057.0,0.284881]
[1727984958139,0.001817,61058.0,61057.0,0.188781]
[1727984960310,0.001817,61058.0,61057.0,0.025]
[1727984961019,0.165595,61058.0,61057.0,0.025]
[1727984962192,0.001817,61058.0,61057.0,0.025]
[1727984962451,0.001817,61058.0,61057.0,0.188781]
[1727984962789,0.165595,61058.0,61055.0,0.163785]
[1727984962796,0.164595,61058.0,61055.0,0.163785]
[1727984962995,0.02749158,61058.0,61057.0,0.017]
[1727984963216,0.02649158,61058.0,61056.0,0.163783]
[1727984963638,0.02649158,61058.0,61057.0,0.007]
[1727984964102,0.02649158,61058.0,61056.0,0.163783]
[1727984964309,0.02649158,61058.0,61056.0,0.170783]
[1727984964772,0.24668821,61057.0,61056.0,0.007]
[1727984964971,0.19913898,61057.0,61056.0,0.007]
[1727984965115,0.163781,61057.0,61056.0,0.007]
[1727984965540,0.163782,61057.0,61046.0,0.24668821]
[1727984965745,0.19127058,61058.0,61056.0,0.007]
[1727984965954,0.163781,61057.0,61056.0,0.007]
[1727984966585,0.02649158,61058.0,61048.0,0.327609]
[1727984966865,0.163786,61056.0,61051.0,0.163796]
[1727984967126,0.02649158,61058.0,61051.0,0.163796]
[1727984967127,0.19027258,61058.0,61051.0,0.163796]
[1727984967338,0.02649158,61058.0,61052.0,0.163792]
[1727984967791,0.163782,61057.0,61052.0,0.163792]
[1727984968032,0.164782,61057.0,61052.0,0.163792]
[1727984968246,0.163782,61057.0,61052.0,0.163792]
[1727984968468,0.02649158,61058.0,61054.0,0.163788]
[1727984968742,0.02649158,61058.0,61057.0,0.163781]
[1727984968953,0.02649158,61058.0,61057.0,0.165415]
[1727984970689,0.02649158,61058.0,61057.0,0.170415]
[1727984971137,0.000817,61058.0,61057.0,0.170415]
[1727984971855,0.000817,61058.0,61057.0,0.174415]
[1727984972343,0.000817,61058.0,61057.0,0.271615]
[1727984973311,0.000817,61058.0,61057.0,0.266615]
[1727984973784,0.000817,61058.0,61057.0,0.280615]
[1727984974675,0.000817,61058.0,61057.0,0.179415]
[1727984974892,0.001817,61058.0,61057.0,0.192415]
[1727984975121,0.001817,61058.0,61057.0,0.028634]
[1727984975609,0.001817,61058.0,61057.0,0.192415]
[1727984975832,0.02749188,61058.0,61057.0,0.028634]
[1727984976295,0.001817,61058.0,61057.0,0.192415]
[1727984978906,0.001817,61058.0,61057.0,0.289615]
[1727984994478,0.02567164,61063.0,61062.0,0.163767]
[1727984994949,0.24668821,61067.0,61060.0,0.327544]
[1727984995171,0.24668821,61067.0,61066.0,0.163757]
[1727984995391,0.00035,61071.0,61069.0,0.163747]
[1727984996531,0.00035,61071.0,61068.0,0.327502]
[1727984996753,0.00135,61071.0,61070.0,0.163746]
[1727984997880,0.00035,61071.0,61070.0,0.163746]
[1727984998315,0.02601978,61071.0,61070.0,0.163746]
[1727984998813,0.02601978,61071.0,61070.0,0.176746]
[1727985000799,0.02601978,61071.0,61070.0,0.35789612]
[1727985001081,0.00035,61071.0,61070.0,0.355346]
[1727985001302,0.24750721,61082.0,61081.0,0.163717]
[1727985001303,0.2164086,61082.0,61081.0,0.163717]
[1727985001780,0.0005,61085.0,61070.0,0.1032]
[1727985001999,0.04960117,61085.0,61076.0,0.16373]
[1727985002242,0.163721,61080.0,61075.0,0.163732]
[1727985002474,0.04958157,61085.0,61074.0,0.24668821]
[1727985002748,0.0005,61085.0,61084.0,0.163708]
[1727985002993,0.0005,61085.0,61070.0,0.007]
[1727985002994,0.336914,61085.0,61078.0,0.327449]
[1727985003237,0.163712,61083.0,61079.0,0.163721]
[1727985003477,0.0095,61085.0,61080.0,0.327437]
[1727985003712,0.173207,61085.0,61080.0,0.163717]
[1727985003937,0.173207,61085.0,61081.0,0.163715]
[1727985004202,0.000819,61082.0,61081.0,0.163715]
[1727985005402,0.000819,61082.0,61080.0,0.002]
[1727985005654,0.241917,61081.0,61080.0,0.002]
[1727985006112,0.163724,61079.0,61075.0,0.41042021]
[1727985006351,0.0782,61081.0,61071.0,0.163742]
[1727985006584,0.163734,61075.0,61072.0,0.16374]
[1727985006854,0.327451,61078.0,61073.0,0.163737]
[1727985007082,0.163728,61077.0,61074.0,0.163735]
[1727985007318,0.16373,61076.0,61075.0,0.005]
[1727985007780,0.327466,61075.0,61070.0,0.163745]
[1727985008002,0.0782,61081.0,61060.0,0.24668821]
[1727985008228,0.0782,61081.0,61062.0,0.163766]
[1727985008229,0.16376,61065.0,61062.0,0.163766]
[1727985008497,0.405708,61068.0,61060.0,0.33878821]
[1727985008498,0.0782,61068.0,61060.0,0.33878821]
[1727985008945,0.0782,61068.0,61057.0,0.001634]
[1727985008946,0.163777,61059.0,61057.0,0.001634]
[1727985008950,0.163778,61058.0,61057.0,0.001634]
[1727985009423,0.163773,61061.0,61057.0,0.001634]
[1727985009667,0.16376,61065.0,61057.0,0.001634]
[1727985009906,0.405707,61068.0,61057.0,0.001634]
[1727985010151,0.163764,61064.0,61057.0,0.165415]
[1727985010651,0.163764,61064.0,61057.0,0.011634]
[1727985010885,0.163765,61063.0,61062.0,0.004]
[1727985011136,0.327521,61065.0,61057.0,0.001634]
[1727985011137,0.163778,61058.0,61057.0,0.001634]
[1727985011374,0.24668821,61066.0,61057.0,0.001634]
[1727985011375,0.327543,61061.0,61057.0,0.008634]
[1727985011615,0.327511,61067.0,61057.0,0.013634]
[1727985011616,0.327526,61064.0,61057.0,0.013634]
[1727985011904,0.327536,61062.0,61057.0,0.013634]
[1727985012137,0.163772,61061.0,61057.0,0.013634]
[1727985012371,0.163772,61061.0,61057.0,0.008634]
[1727985012644,0.327509,61067.0,61057.0,0.008634]
[1727985012645,0.0490273,61069.0,61057.0,0.093734]
[1727985012879,0.0980546,61073.0,61067.0,0.163753]
[1727985012880,0.163738,61073.0,61067.0,0.163753]
[1727985013107,0.327466,61075.0,61068.0,0.16375]
[1727985013352,0.0782,61076.0,61067.0,0.327506]
[1727985013580,0.47,61079.0,61069.0,0.24668821]
[1727985013581,0.0490273,61079.0,61069.0,0.24668821]
[1727985013804,0.0490273,61081.0,61065.0,0.00277215]
[1727985014051,0.32825,61082.0,61075.0,0.163732]
[1727985014052,0.16372,61080.0,61075.0,0.163732]
[1727985014720,0.02566896,61078.0,61067.0,0.004]
[1727985014942,0.02566896,61078.0,61069.0,0.24668821]
[1727985015216,0.0769,61077.0,61069.0,0.24668821]
[1727985015676,0.163739,61073.0,61069.0,0.24668821]
[1727985015912,0.163735,61074.0,61062.0,0.24668821]
[1727985016167,0.163735,61074.0,61071.0,0.163743]
[1727985016604,0.327477,61073.0,61062.0,0.24668821]
[1727985016832,0.240628,61077.0,61070.0,0.327491]
[1727985017065,0.003,61078.0,61069.0,0.001]
[1727985017293,0.003,61078.0,61076.0,0.163729]
[1727985017535,0.003,61078.0,61073.0,0.327473]
[1727985017536,0.166725,61078.0,61075.0,0.163731]
[1727985017791,0.04906125,61080.0,61071.0,0.003]
[1727985018009,0.07359187,61081.0,61072.0,0.24668821]
[1727985018010,0.163734,61075.0,61072.0,0.24668821]
[1727985018244,0.04906125,61079.0,61071.0,0.166742]
[1727985018245,0.04906125,61079.0,61071.0,0.003]
[1727985018470,0.163741,61072.0,61071.0,0.003]
[1727985018716,0.242041,61072.0,61071.0,0.003]
[1727985018964,0.163761,61065.0,61062.0,0.24668821]
[1727985019198,0.163754,61068.0,61064.0,0.163762]
[1727985019445,0.163756,61067.0,61064.0,0.163761]
[1727985019894,0.163746,61070.0,61063.0,0.327525]
[1727985020121,0.163746,61070.0,61062.0,0.24668821]
[1727985020122,0.04906125,61074.0,61062.0,0.24668821]
[1727985020366,0.04907435,61077.0,61074.0,0.32747]
[1727985020633,0.04907435,61077.0,61063.0,0.0818]
[1727985020634,0.47,61079.0,61071.0,0.0951]
[1727985020891,0.000819,61082.0,61081.0,0.163717]
[1727985021582,0.000819,61082.0,61081.0,0.257917]
[1727985022504,0.016129,61093.0,61081.0,0.257917]
[1727985022505,0.016129,61093.0,61081.0,0.37418671]
[1727985022757,0.016129,61093.0,61084.0,0.383608]
[1727985023038,0.016129,61093.0,61084.0,0.54679471]
[1727985023271,0.016129,61093.0,61084.0,0.79348292]
[1727985023532,0.016129,61093.0,61084.0,0.62859471]
[1727985023785,0.016129,61093.0,61084.0,0.62659471]
[1727985025161,0.016129,61093.0,61084.0,0.64059471]
[1727985025641,0.016129,61093.0,61084.0,0.62659471]
[1727985025875,0.016129,61093.0,61084.0,0.65455409]
[1727985026109,0.016129,61093.0,61084.0,0.64055409]
[1727985026374,0.016129,61093.0,61084.0,0.62655409]
[1727985026609,0.016129,61093.0,61084.0,0.61755409]
[1727985027098,0.016129,61093.0,61084.0,0.60355409]
[1727985027590,0.016129,61093.0,61084.0,0.46836738]
[1727985027826,0.016129,61093.0,61084.0,0.61755409]
[1727985028053,0.016129,61093.0,61084.0,0.45436738]
[1727985028305,0.016129,61093.0,61084.0,0.46836738]
[1727985028537,0.016129,61093.0,61084.0,0.45436738]
[1727985028776,0.016129,61093.0,61084.0,0.38356738]
[1727985029004,0.016129,61093.0,61084.0,0.36956738]
[1727985029733,0.163698,61088.0,61084.0,0.26956738]
[1727985029987,0.016129,61093.0,61084.0,0.028]
[1727985030213,0.163702,61087.0,61084.0,0.028]
[1727985030445,0.327378,61092.0,61084.0,0.014]
[1727985030776,0.016129,61093.0,61074.0,0.327467]
[1727985030777,0.327418,61084.0,61074.0,0.327467]
[1727985031007,0.163741,61072.0,61067.0,0.24668821]
[1727985032204,0.163741,61072.0,61071.0,0.002636]
[1727985032449,0.163741,61072.0,61071.0,0.001636]
[1727985033834,0.163741,61072.0,61071.0,0.002636]
[1727985033835,0.18941261,61072.0,61071.0,0.002636]
[1727985034049,0.18941261,61072.0,61071.0,0.001636]
[1727985034979,0.18941261,61072.0,61071.0,0.002636]
[1727985035205,0.18941261,61072.0,61071.0,0.001636]
[1727985036329,0.163741,61072.0,61071.0,0.001636]
[1727985037481,0.163741,61072.0,61071.0,0.002636]
[1727985038205,0.163741,61072.0,61071.0,0.001636]
[1727985038449,0.24668821,61082.0,61071.0,0.002636]
[1727985038657,0.1,61081.0,61071.0,0.001636]
[1727985038923,0.427435,61081.0,61071.0,0.001636]
[1727985039177,0.34668821,61081.0,61071.0,0.001636]
[1727985039403,0.163725,61078.0,61071.0,0.001636]
[1727985039667,0.163741,61072.0,61071.0,0.002636]
[1727985040154,0.163741,61072.0,61071.0,0.001636]
[1727985040882,0.163738,61073.0,61071.0,0.001636]
[1727985041120,0.327456,61077.0,61072.0,0.163739]
[1727985041342,0.327421,61084.0,61071.0,0.001636]
[1727985041569,0.24668821,61081.0,61074.0,0.327468]
[1727985041822,0.163715,61082.0,61076.0,0.32746]
[1727985042067,0.18938682,61080.0,61071.0,0.001636]
[1727985042314,0.02566682,61080.0,61076.0,0.32746]
[1727985042577,0.02566682,61080.0,61079.0,0.163722]
[1727985042825,0.24668821,61083.0,61082.0,0.163714]
[1727985043319,0.32739,61090.0,61078.0,0.327449]
[1727985043320,0.1,61089.0,61078.0,0.327449]
[1727985043553,0.1,61089.0,61071.0,0.077036]
[1727985043554,0.24668821,61091.0,61084.0,0.163708]
[1727985043797,0.163695,61089.0,61084.0,0.163708]
[1727985044039,0.163694,61090.0,61084.0,0.163708]
[1727985044290,0.163695,61089.0,61084.0,0.163708]
[1727985044530,0.41038021,61091.0,61084.0,0.163708]
[1727985044783,0.1637,61087.0,61084.0,0.163708]
[1727985045028,0.1637,61087.0,61084.0,0.169708]
[1727985045536,0.327391,61089.0,61084.0,0.169708]
[1727985045537,0.02566395,61089.0,61084.0,0.169708]
[1727985046040,0.24668821,61091.0,61084.0,0.169708]
[1727985046277,0.327345,61098.0,61084.0,0.169708]
[1727985046525,0.163673,61098.0,61084.0,0.274908]
[1727985046785,0.48288857,61100.0,61084.0,0.268908]
[1727985046786,0.41055621,61099.0,61084.0,0.268908]
[1727985047037,0.24688821,61099.0,61084.0,0.268908]
[1727985047272,0.24688821,61099.0,61084.0,0.277908]
[1727985047522,0.24688821,61099.0,61084.0,0.43209471]
[1727985047714,0.24688821,61099.0,61084.0,0.43709471]
[1727985047990,0.24688821,61099.0,61084.0,0.43209471]
[1727985048231,0.24688821,61099.0,61084.0,0.43809471]
[1727985048475,0.24688821,61099.0,61084.0,0.44509471]
[1727985048701,0.24668821,61092.0,61084.0,0.62699471]
[1727985048956,0.24668821,61092.0,61084.0,0.61999471]
[1727985049203,0.24668821,61092.0,61084.0,0.63399471]
[1727985049707,0.24668821,61092.0,61084.0,0.61999471]
[1727985050469,0.24668821,61092.0,61084.0,0.63399471]
[1727985050689,0.24668821,61092.0,61084.0,0.61999471]
[1727985050915,0.24668821,61092.0,61084.0,0.63399471]
[1727985051144,0.24668821,61092.0,61084.0,0.61999471]
[1727985051639,0.24668821,61092.0,61084.0,0.63399471]
[1727985053747,0.24668821,61092.0,61084.0,0.63563071]
[1727985053751,0.41037621,61092.0,61084.0,0.290544]
[1727985053991,0.327383,61091.0,61084.0,0.029636]
[1727985054227,0.163701,61087.0,61084.0,0.029636]
[1727985054458,0.163698,61088.0,61084.0,0.193344]
[1727985054699,0.163701,61087.0,61084.0,0.015636]
[1727985054934,0.163698,61088.0,61084.0,0.024636]
[1727985055171,0.163698,61088.0,61084.0,0.188344]
[1727985055415,0.163698,61088.0,61084.0,0.179344]
[1727985055927,0.35304524,61091.0,61084.0,0.022636]
[1727985055928,0.163701,61087.0,61084.0,0.022636]
[1727985056182,0.163704,61086.0,61084.0,0.008636]
[1727985056447,0.163701,61087.0,61084.0,0.013636]
[1727985056685,0.163701,61087.0,61084.0,0.177344]
[1727985056932,0.163701,61087.0,61084.0,0.013636]
[1727985057451,0.165024,61085.0,61084.0,0.013636]
[1727985058413,0.165024,61085.0,61084.0,0.006636]
[1727985058898,0.165024,61085.0,61084.0,0.012636]
[1727985059147,0.165024,61085.0,61084.0,0.007636]
[1727985060140,0.165024,61085.0,61084.0,0.011636]
[1727985061092,0.19068845,61085.0,61084.0,0.011636]
[1727985062042,0.165024,61085.0,61084.0,0.011636]
[1727985063012,0.001318,61085.0,61084.0,0.011636]
[1727985063479,0.165024,61085.0,61084.0,0.011636]
[1727985063982,0.001318,61085.0,61084.0,0.011636]
[1727985064233,0.001318,61085.0,61084.0,0.175344]
[1727985064927,0.001318,61085.0,61084.0,0.169344]
[1727985065153,0.001318,61085.0,61084.0,0.178344]
[1727985065398,0.001318,61085.0,61084.0,0.174344]
[1727985065399,0.02698042,61085.0,61084.0,0.174344]
[1727985065645,0.02698042,61085.0,61084.0,0.182344]
[1727985065884,0.02698042,61085.0,61084.0,0.174344]
[1727985066120,0.02698042,61085.0,61084.0,0.178344]
[1727985066369,0.02698042,61085.0,61084.0,0.169344]
[1727985066605,0.001318,61085.0,61084.0,0.171344]
[1727985066839,0.001318,61085.0,61084.0,0.182344]
[1727985067572,0.001318,61085.0,61084.0,0.176344]
[1727985067813,0.001318,61085.0,61084.0,0.189344]
[1727985070382,0.001318,61085.0,61084.0,0.025636]
[1727985071068,0.165024,61085.0,61084.0,0.025636]
[1727985072073,0.001318,61085.0,61084.0,0.025636]
[1727985072322,0.001318,61085.0,61084.0,0.189344]
[1727985072563,0.001318,61085.0,61084.0,0.178344]
[1727985072788,0.001318,61085.0,61084.0,0.180344]
[1727985073255,0.001318,61085.0,61084.0,0.167344]
[1727985073487,0.001318,61085.0,61084.0,0.172344]
[1727985074029,0.001318,61085.0,61084.0,0.167344]
[1727985074284,0.001318,61085.0,61084.0,0.176344]
[1727985074519,0.001318,61085.0,61084.0,0.174344]
[1727985074758,0.001318,61085.0,61084.0,0.181344]
[1727985079706,0.001318,61085.0,61084.0,0.165344]
[1727985079928,0.001318,61085.0,61084.0,0.173344]
[1727985080145,0.001318,61085.0,61084.0,0.183344]
[1727985081411,0.001318,61085.0,61084.0,0.276144]
[1727985081869,0.001318,61085.0,61084.0,0.27941049]
[1727985082116,0.001318,61085.0,61084.0,0.276144]
[1727985082781,0.001318,61085.0,61084.0,0.183344]
[1727985083781,0.001318,61085.0,61084.0,0.019636]
[1727985084028,0.076518,61085.0,61084.0,0.019636]
[1727985084250,0.240224,61085.0,61084.0,0.019636]
[1727985085209,0.28918669,61085.0,61084.0,0.019636]
[1727985085439,0.240224,61085.0,61084.0,0.019636]
[1727985085694,0.240224,61085.0,61084.0,0.011636]
[1727985085927,0.240224,61085.0,61084.0,0.001636]
[1727985086155,0.240224,61085.0,61084.0,0.008636]
[1727985086392,0.31366803,61085.0,61084.0,0.006636]
[1727985087086,0.33933365,61085.0,61084.0,0.006636]
[1727985087317,0.33954001,61085.0,61084.0,0.001636]
[1727985087564,0.26434001,61085.0,61084.0,0.001636]
[1727985087808,0.02698362,61085.0,61084.0,0.001636]
[1727985088280,0.23978276,61085.0,61084.0,0.001636]
[1727985088744,0.19168962,61085.0,61084.0,0.001636]
[1727985089442,0.19168962,61085.0,61084.0,0.005636]
[1727985089685,0.19168962,61085.0,61084.0,0.001636]
[1727985089686,0.02698362,61085.0,61084.0,0.001636]
[1727985089931,0.02698362,61085.0,61084.0,0.170344]
[1727985090401,0.02698362,61085.0,61084.0,0.166344]
[1727985090629,0.02698362,61085.0,61084.0,0.169344]
[1727985091093,0.02698362,61085.0,61084.0,0.168344]
[1727985091813,0.001318,61085.0,61084.0,0.168344]
[1727985092108,0.001318,61085.0,61084.0,0.166344]
[1727985092335,0.001318,61085.0,61084.0,0.169344]
[1727985092571,0.001318,61085.0,61084.0,0.183344]
[1727985092799,0.001318,61085.0,61084.0,0.179344]
[1727985093028,0.001318,61085.0,61084.0,0.193344]
[1727985093516,0.001318,61085.0,61084.0,0.179344]
[1727985094213,0.001318,61085.0,61084.0,0.165344]
[1727985094452,0.001318,61085.0,61084.0,0.179344]
[1727985094703,0.001318,61085.0,61084.0,0.165344]
[1727985094949,0.001318,61085.0,61084.0,0.179344]
[1727985095181,0.001318,61085.0,61084.0,0.193344]
[1727985095652,0.001318,61085.0,61084.0,0.029636]
[1727985095896,0.001318,61085.0,61084.0,0.193344]
[1727985097062,0.001318,61085.0,61084.0,0.179344]
[1727985097514,0.001318,61085.0,61084.0,0.168344]
[1727985097741,0.001318,61085.0,61084.0,0.179344]
[1727985097970,0.001318,61085.0,61084.0,0.187344]
[1727985099197,0.02698088,61085.0,61084.0,0.173344]
[1727985099427,0.02698088,61085.0,61084.0,0.183344]
[1727985100343,0.001318,61085.0,61084.0,0.183344]
[1727985105466,0.001318,61085.0,61084.0,0.28436234]
[1727985105917,0.001318,61085.0,61084.0,0.283344]
[1727985110492,0.165024,61085.0,61084.0,0.119636]
[1727985110977,0.001318,61085.0,61084.0,0.119636]
[1727985114238,0.001318,61085.0,61084.0,0.283344]
[1727985114920,0.001318,61085.0,61084.0,0.119636]
[1727985115385,0.001318,61085.0,61084.0,0.283344]
[1727985115833,0.001318,61085.0,61084.0,0.119636]
[1727985116547,0.02698244,61085.0,61084.0,0.119636]
[1727985116797,0.02698244,61085.0,61084.0,0.283344]
[1727985117996,0.001318,61085.0,61084.0,0.283344]
[1727985121084,0.165024,61085.0,61084.0,0.119636]
[1727985121541,0.23870567,61085.0,61084.0,0.119636]
[1727985121821,0.05042977,61085.0,61084.0,0.119636]
[1727985122063,0.001318,61085.0,61084.0,0.119636]
[1727985122290,0.001318,61085.0,61084.0,0.273344]
[1727985122522,0.001318,61085.0,61084.0,0.109636]
[1727985122756,0.001318,61085.0,61084.0,0.273344]
[1727985122989,0.163693,61090.0,61086.0,0.163701]
[1727985122990,0.21280577,61090.0,61086.0,0.163701]
[1727985123226,0.163694,61090.0,61085.0,0.42609]
[1727985123461,0.327386,61090.0,61085.0,0.098682]
[1727985123693,0.163703,61086.0,61085.0,0.098682]
[1727985124450,0.21281163,61086.0,61085.0,0.100682]
[1727985124689,0.31426594,61086.0,61085.0,0.098682]
[1727985124930,0.240603,61086.0,61085.0,0.098682]
[1727985125166,0.240603,61086.0,61085.0,0.101682]
[1727985125167,0.31426889,61086.0,61085.0,0.101682]
[1727985125436,0.52975744,61086.0,61085.0,0.009582]
[1727985125694,0.266522,61079.0,61061.0,0.24668821]
[1727985125959,0.288741,61072.0,61068.0,0.24668821]
[1727985126212,0.364241,61072.0,61068.0,0.24668821]
[1727985126453,0.56075166,61072.0,61061.0,0.24668821]
[1727985126716,0.51363898,61072.0,61061.0,0.24668821]
[1727985126936,0.364241,61072.0,61058.0,0.1]
[1727985127409,0.247276,61059.0,61058.0,0.1]
[1727985127666,0.296305,61059.0,61058.0,0.1]
[1727985127901,0.2943045,61059.0,61058.0,0.1]
[1727985128372,0.29430436,61059.0,61058.0,0.1]
[1727985128604,0.41491001,61059.0,61058.0,0.1]
[1727985129064,0.5671198,61059.0,61058.0,0.1]
[1727985129299,0.52248579,61059.0,61058.0,0.1]
[1727985129545,0.42517455,61059.0,61058.0,0.101]
[1727985129778,0.47413388,61059.0,61058.0,0.101]
[1727985130015,0.47413388,61059.0,61058.0,0.1]
[1727985130016,0.42423533,61059.0,61058.0,0.1]
[1727985130250,0.47313388,61059.0,61058.0,0.1]
[1727985130496,0.376276,61059.0,61058.0,0.1]
[1727985131447,0.353276,61059.0,61058.0,0.1]
[1727985132454,0.5118653,61059.0,61058.0,0.1]
[1727985133427,0.5118653,61059.0,61057.0,0.001634]
[1727985133428,0.368778,61058.0,61057.0,0.001634]
[1727985133915,0.41467655,61058.0,61057.0,0.001634]
[1727985134165,0.3693,61050.0,61047.0,0.001634]
[1727985134406,0.4717475,61050.0,61047.0,0.001634]
[1727985134640,0.3693,61050.0,61047.0,0.001634]
[1727985135618,0.3693,61050.0,61049.0,0.00304]
[1727985135848,0.3793,61050.0,61049.0,0.00304]
[1727985136322,0.3693,61050.0,61049.0,0.00204]
[1727985136556,0.3753,61050.0,61049.0,0.00304]
[1727985136812,0.4777475,61050.0,61049.0,0.00304]
[1727985137093,0.3773,61050.0,61049.0,0.00304]
[1727985137550,0.3883,61050.0,61049.0,0.00404]
[1727985137780,0.3633,61050.0,61049.0,0.00404]
[1727985138485,0.38898584,61050.0,61049.0,0.00404]
[1727985138941,0.38298584,61050.0,61049.0,0.00304]
[1727985139166,0.38598584,61050.0,61049.0,0.00304]
[1727985139637,0.3553,61050.0,61049.0,0.00304]
[1727985139854,0.3583,61050.0,61049.0,0.00304]
[1727985140082,0.3603,61050.0,61049.0,0.00304]
[1727985140309,0.3493,61050.0,61049.0,0.00204]
[1727985140538,0.2738,61050.0,61049.0,0.00304]
[1727985140756,0.2668,61050.0,61049.0,0.00204]
[1727985141225,0.2738,61050.0,61049.0,0.00304]
[1727985141727,0.01,61050.0,61049.0,0.00304]
[1727985142421,0.007,61050.0,61049.0,0.00304]
[1727985142639,0.1708,61050.0,61049.0,0.00304]
[1727985142869,0.1708,61050.0,61049.0,0.00604]
[1727985142870,0.03368268,61050.0,61049.0,0.00604]
[1727985143326,0.19748268,61050.0,61049.0,0.00604]
[1727985143887,0.02668268,61050.0,61049.0,0.00504]
[1727985144135,0.02668268,61050.0,61049.0,0.00804]
[1727985144623,0.19048268,61050.0,61049.0,0.00804]
[1727985145570,0.18948268,61050.0,61049.0,0.00204]
[1727985145825,0.20148268,61050.0,61049.0,0.00304]
[1727985146290,0.1718,61050.0,61049.0,0.00304]
[1727985146513,0.1738,61050.0,61049.0,0.00304]
[1727985146742,0.1718,61050.0,61049.0,0.00304]
[1727985146965,0.1638,61050.0,61049.0,0.003678]
[1727985147678,0.1678,61050.0,61049.0,0.003678]
[1727985148346,0.1708,61050.0,61049.0,0.004678]
[1727985149016,0.1708,61050.0,61049.0,0.003778]
[1727985149233,0.1708,61050.0,61049.0,0.003678]
[1727985149684,0.19648486,61050.0,61049.0,0.003678]
[1727985149921,0.19648486,61050.0,61049.0,0.002978]
[1727985150138,0.19648486,61050.0,61049.0,0.002878]
[1727985150588,0.19648486,61050.0,61049.0,0.002678]
[1727985150811,0.19648486,61050.0,61049.0,0.002078]
[1727985151086,0.19648486,61050.0,61049.0,0.001978]
[1727985151335,0.19648486,61050.0,61049.0,0.001878]
[1727985151580,0.32148486,61050.0,61049.0,0.001478]
[1727985151807,0.29648486,61050.0,61049.0,0.001278]
[1727985152047,0.29648486,61050.0,61049.0,0.001078]
[1727985152284,0.29848486,61050.0,61049.0,0.000678]
[1727985152505,0.29848486,61050.0,61049.0,0.000478]
[1727985152506,0.32148486,61050.0,61049.0,0.000478]
[1727985152729,0.45967835,61050.0,61049.0,0.000278]
[1727985152960,0.45967835,61050.0,61049.0,0.000178]
[1727985153209,0.45967835,61050.0,61047.0,0.001312]
[1727985153210,0.288805,61048.0,61047.0,0.001312]
[1727985153437,0.367305,61048.0,61047.0,0.001312]
[1727985154355,0.368305,61048.0,61047.0,0.001312]
[1727985154590,0.367305,61048.0,61047.0,0.003312]
[1727985155081,0.381305,61048.0,61047.0,0.002312]
[1727985155313,0.392305,61048.0,61047.0,0.001312]
[1727985155791,0.392305,61048.0,61032.0,0.24847421]
[1727985155792,0.163845,61033.0,61032.0,0.24847421]
[1727985156030,0.327657,61040.0,61033.0,0.096]
[1727985156312,0.5955,61048.0,61034.0,0.163842]
[1727985156313,0.163825,61041.0,61034.0,0.163842]
[1727985156553,0.32766,61039.0,61033.0,0.259845]
[1727985156808,0.163838,61036.0,61033.0,0.259845]
[1727985157059,0.1,61045.0,61033.0,0.096]
[1727985157060,0.32767,61037.0,61033.0,0.096]
[1727985157286,0.163842,61035.0,61033.0,0.096]
[1727985157519,0.163839,61036.0,61033.0,0.259845]
[1727985157802,0.327672,61037.0,61033.0,0.096]
[1727985158036,0.16384,61035.0,61033.0,0.096]
[1727985158508,0.001,61035.0,61033.0,0.098]
[1727985159005,0.001,61035.0,61034.0,0.163843]
[1727985159488,0.0266881,61035.0,61033.0,0.264845]
[1727985159724,0.001,61035.0,61033.0,0.264845]
[1727985159960,0.001,61035.0,61034.0,0.163843]
[1727985160687,0.001,61035.0,61034.0,0.169481]
[1727985161422,0.16384,61036.0,61034.0,0.005638]
[1727985161654,0.24668821,61038.0,61034.0,0.005638]
[1727985161793,0.163835,61037.0,61034.0,0.16948]
[1727985162173,0.001,61035.0,61034.0,0.17148]
[1727985162747,0.163832,61038.0,61034.0,0.16948]
[1727985162852,0.163832,61038.0,61034.0,0.17148]
[1727985163088,0.18952805,61035.0,61034.0,0.007638]
[1727985163336,0.02568805,61035.0,61034.0,0.003638]
[1727985163811,0.02568805,61035.0,61034.0,0.006638]
[1727985164035,0.02568805,61035.0,61034.0,0.003638]
[1727985164277,0.02568805,61035.0,61034.0,0.005638]
[1727985164966,0.19052805,61035.0,61034.0,0.007638]
[1727985167251,0.19052805,61035.0,61034.0,0.100638]
[1727985167505,0.02668805,61035.0,61034.0,0.100638]
[1727985167970,0.02668805,61035.0,61034.0,0.264481]
[1727985168200,0.02668805,61035.0,61034.0,0.100638]
[1727985168895,0.02568805,61035.0,61034.0,0.262481]
[1727985169139,0.02668805,61035.0,61034.0,0.347181]
[1727985169382,0.001,61035.0,61034.0,0.347181]
[1727985169863,0.001,61035.0,61034.0,0.183338]
[1727985170112,0.16484,61035.0,61034.0,0.179338]
[1727985170389,0.002,61035.0,61034.0,0.350181]
[1727985171651,0.002,61035.0,61034.0,0.186338]
[1727985172533,0.16584,61035.0,61034.0,0.103638]
[1727985172945,0.19152794,61035.0,61034.0,0.103638]
[1727985173717,0.19234694,61035.0,61034.0,0.103638]
[1727985174218,0.02850694,61035.0,61034.0,0.103638]
[1727985174454,0.02850694,61035.0,61034.0,0.267481]
[1727985175649,0.02850694,61035.0,61034.0,0.103638]
[1727985175889,0.02850694,61035.0,61034.0,0.267481]
[1727985177707,0.002819,61035.0,61034.0,0.267481]